fUSD/lending_fUSD_20260218
["ID","MTS","AMOUNT","RATE_DAILY","PERIOD"]
[405930156,1771420248117,-1500.0,0.00014795,2]
[405930157,1771420248128,-477.33821748,0.00014795,2]
[405930158,1771420248138,-508.58168582,0.00014795,2]
[405930159,1771420248149,-512.09053139,0.00014795,2]
[405930160,1771420248159,-1500.0,0.00014795,2]
[405930161,1771420248170,-187.09841863,0.00014795,2]
[405930162,1771420248180,-1500.0,0.00014795,2]
[405930163,1771420248190,-534.53110943,0.00014795,2]
[405930164,1771420248201,-1500.0,0.00014795,2]
[405930165,1771420248212,-1037.4625703,0.00014795,2]
[405930166,1771420248224,-1500.0,0.00014795,2]
[405930167,1771420248234,-1500.0,0.00014795,2]
[405930168,1771420248245,-1500.0,0.00014795,2]
[405930169,1771420248255,-1500.0,0.00014795,2]
[405930170,1771420248266,-166.66,0.00014878,2]
[405930171,1771420248277,-250.0,0.00015,2]
[405930172,1771420248289,-155.0,0.00015068,2]
[405930173,1771420248300,-2251.56583335,0.00015092,2]
[405930174,1771420248310,-166.66,0.00015312,2]
[405930175,1771420248322,-1465.77482029,0.00015342,2]
[405930176,1771420248333,-2000.0,0.00015342,2]
[405930177,1771420248343,-1960.08113192,0.00015342,2]
[405930178,1771420248354,-2000.0,0.00015342,2]
[405930179,1771420248364,-1830.45995604,0.00015342,2]
[405930180,1771420248375,-2000.0,0.00015342,2]
[405930181,1771420248385,-2000.0,0.00015342,2]
[405930182,1771420248395,-605.03701467,0.00015342,2]
[405930183,1771420248406,-200.0,0.00015457,2]
[405930184,1771420248417,-268.0,0.00015652,2]
[405930185,1771420248427,-200.0,0.00015652,2]
[405930186,1771420248438,-215.0,0.00015652,2]
[405930187,1771420248448,-172.182,0.00015652,2]
[405930188,1771420248458,-150.0,0.00015652,2]
[405930189,1771420248468,-150.0,0.00015652,2]
[405930190,1771420248479,-150.0,0.00015652,2]
[405930191,1771420248489,-150.0,0.00015652,2]
[405930192,1771420248499,-150.0,0.00015652,2]
[405930193,1771420248511,-150.0,0.00015652,2]
[405930194,1771420248523,-150.0,0.00015652,2]
[405930195,1771420248532,-150.0,0.00015652,2]
[405930196,1771420248543,-162.74,0.00015652,2]
[405930197,1771420248553,-1351.534,0.00015652,2]
[405930198,1771420248565,-1164.0,0.00015652,2]
[405930199,1771420248576,-638.503,0.00015652,2]
[405930200,1771420248587,-267.79,0.00015652,2]
[405930201,1771420248597,-1275.0,0.00015652,2]
[405930202,1771420248607,-1219.539,0.00015652,2]
[405930203,1771420248620,-2452.0,0.00015657,2]
[405930204,1771420248631,-5973.0,0.00015657,2]
[405930205,1771420248641,-552.47642339,0.00015724,7]
[405930206,1771420248651,-25949.63612918,0.00015745,2]
[405930207,1771420248662,-482.75960727,0.00015869,2]
[405930208,1771420248673,-1783.85919121,0.0001589,2]
[405930209,1771420248684,-2500.0,0.0001589,2]
[405930210,1771420248696,-1534.2126926,0.0001589,2]
[405930211,1771420248708,-801.75028282,0.0001589,2]
[405930212,1771420248721,-200.0,0.000159,5]
[405930213,1771420248734,-150.0,0.00016,2]
[405930214,1771420248745,-150.0,0.00016,2]
[405930215,1771420248756,-150.0,0.00016,2]
[405930216,1771420248766,-507.0,0.0001605,2]
[405930217,1771420248776,-482.75960727,0.00016265,2]
[405930218,1771420248789,-2836.0,0.000164,2]
[405930219,1771420248801,-2836.0,0.000164,2]
[405930220,1771420248812,-2836.0,0.000164,2]
[405930221,1771420248823,-2836.0,0.000164,2]
[405930222,1771420248835,-155.0,0.00016438,2]
[405930223,1771420248845,-227.84,0.00016438,2]
[405930224,1771420248856,-3000.0,0.00016438,2]
[405930225,1771420248866,-5228.77,0.0001649,2]
[405930226,1771420248876,-2251.56583335,0.00016496,2]
[405930227,1771420248887,-482.75960727,0.00016662,2]
[405930228,1771420248898,-841.0,0.00016712,2]
[405930229,1771420248910,-160.0,0.0001672,2]
[405930230,1771420248921,-2836.0,0.0001672,2]
[405930231,1771420248932,-841.0,0.00016986,2]
[405930232,1771420248945,-3500.0,0.00016986,2]
[405930233,1771420248957,-507.0,0.00016991,2]
[405930234,1771420248969,-300.0,0.00017,2]
[405930235,1771420248979,-842.0,0.0001704,2]
[405930236,1771420248989,-2836.0,0.0001704,2]
[405930237,1771420248998,-482.75960727,0.00017059,2]
[405930238,1771420249008,-348.354952,0.00017079,7]
[405930239,1771420249017,-841.0,0.0001726,2]
[405930240,1771420249026,-984.0,0.0001736,2]
[405930241,1771420249037,-160.0,0.0001736,2]
[405930242,1771420249048,-1999.0,0.00017534,2]
[405930243,1771420249058,-4000.0,0.00017534,2]
[405930244,1771420249069,-160.0,0.0001768,2]
[405930245,1771420249080,-200.0,0.000178,6]
[405930246,1771420249093,-841.0,0.00017808,2]
[405930247,1771420249104,-1474.0,0.00017808,2]
[405930248,1771420249114,-800.0,0.00017808,2]
[405930249,1771420249126,-250.0,0.00017808,20]
[405930250,1771420249138,-250.0,0.00017808,20]
[405930251,1771420249148,-250.0,0.00017808,20]
[405930252,1771420249160,-250.0,0.00017808,20]
[405930253,1771420249171,-250.0,0.00017808,20]
[405930254,1771420249181,-250.0,0.00017808,20]
[405930255,1771420249190,-250.0,0.00017808,20]
[405930256,1771420249200,-175.581631,0.00017808,20]
[405930257,1771420249210,-2000.0,0.0001782,2]
[405930258,1771420249219,-2000.0,0.0001782,2]
[405930259,1771420249229,-25000.0,0.000179,3]
[405930260,1771420249240,-5008.1800114,0.000179,3]
[405930261,1771420249252,-200.0,0.000179,6]
[405930262,1771420249263,-2251.56583335,0.000179,2]
[405930263,1771420249272,-170.40667766,0.000179,2]
[405930264,1771420249283,-507.0,0.00017931,3]
[405930265,1771420249294,-1000.0,0.0001797,2]
[405930266,1771420249305,-500.0,0.0001797,2]
[405930267,1771420249315,-500.0,0.0001797,2]
[405930268,1771420249328,-1000.0,0.0001797,2]
[405930269,1771420249344,-500.0,0.0001797,2]
[405930270,1771420249354,-1000.0,0.0001797,2]
[405930271,1771420249364,-1000.0,0.0001797,2]
[405930272,1771420249374,-900.0,0.0001797,2]
[405930273,1771420249385,-1602.42010233,0.0001797,2]
[405930274,1771420249396,-150.0,0.00017975,2]
[405930275,1771420249407,-1889.54156641,0.0001799,2]
[405930276,1771420249419,-19232.0506135,0.00017991,2]
[405930277,1771420249430,-200.0,0.00017998,3]
[405930278,1771420249440,-200.0,0.00017998,3]
[405930279,1771420249451,-200.0,0.00017998,3]
[405930280,1771420249462,-200.0,0.00017998,3]
[405930281,1771420249471,-245.2765902,0.00017998,3]
[405930282,1771420249481,-504.510834,0.00017998,3]
[405930283,1771420249491,-150.0,0.00017999,2]
[405930284,1771420249501,-1069749.65371474,0.00018,2]
[405930285,1771420249633,-874.14799494,0.00018,2]
[405930286,1771420249674,-500.0,0.00010367,2]
[405930287,1771420249684,-1000.0,0.00010915,2]
[405930288,1771420249694,-1195.89534376,0.00011463,2]
[405930289,1771420249704,-143676.35036906,0.00018,2]
[405930290,1771420249802,-500.0,0.00013699,2]
[405930291,1771420249812,-285.30109483,0.00013699,2]
[405930292,1771420249822,-1000.0,0.00014247,2]
[405930293,1771420249832,-1500.0,0.00014795,2]
[405930294,1771420249842,-1721.59968024,0.00015342,2]
[405930295,1771420249851,-935.257,0.00015657,2]
[405930296,1771420249861,-2133.98637849,0.00018,2]
[405930297,1771420249872,-773.28699911,0.00018,2]
[405930298,1771420249884,-334.1136,0.00018,2]
[405930299,1771420249895,-1712.5,0.00018,2]
[405930300,1771420249907,-4814170.68213495,0.00018,2]
[405930301,1771420249916,-109735.58932205,0.00018,2]
[405930302,1771420249925,-2074336.26384037,0.00018,2]
[405930303,1771420249935,-528.47828338,0.00018,2]
[405930304,1771420249946,-156.0,0.00018,2]
[405930305,1771420249956,-200.0,0.00018,2]
[405930306,1771420249966,-150.0,0.00018,2]
[405930307,1771420249976,-150.0,0.00018,7]
[405930308,1771420249986,-2000.0,0.00018,2]
[405930309,1771420249996,-2000.0,0.00018,2]
[405930310,1771420250006,-2000.0,0.00018,2]
[405930311,1771420250015,-2000.0,0.00018,2]
[405930312,1771420250025,-183.30982713,0.00018,2]
[405930313,1771420250034,-200.0,0.00018,2]
[405930314,1771420250044,-841.0,0.00018082,2]
[405930315,1771420250054,-4262.81883542,0.00018082,2]
[405930316,1771420250063,-200.0,0.0001818,2]
[405930317,1771420250073,-168.0,0.00018202,2]
[405930318,1771420250082,-300.0,0.0001824,2]
[405930319,1771420250092,-156.0,0.0001824,2]
[405930320,1771420250102,-153.0,0.0001824,2]
[405930321,1771420250111,-152.0,0.0001824,2]
[405930322,1771420250121,-237.34477627,0.0001824,2]
[405930323,1771420250131,-1508.0,0.0001824,2]
[405930324,1771420250141,-153.0,0.0001824,2]
[405930325,1771420250151,-152.0,0.0001824,2]
[405930326,1771420250161,-156.0,0.0001824,2]
[405930327,1771420250170,-1508.0,0.0001824,2]
[405930328,1771420250180,-153.0,0.0001824,2]
[405930329,1771420250190,-152.0,0.0001824,2]
[405930330,1771420250200,-156.0,0.0001824,2]
[405930331,1771420250210,-1508.0,0.0001824,2]
[405930332,1771420250219,-153.0,0.0001824,2]
[405930333,1771420250229,-152.0,0.0001824,2]
[405930334,1771420250239,-156.0,0.0001824,2]
[405930335,1771420250250,-1508.0,0.0001824,2]
[405930336,1771420250260,-153.0,0.0001824,2]
[405930337,1771420250271,-152.0,0.0001824,2]
[405930338,1771420250282,-1508.0,0.0001824,2]
[405930339,1771420250291,-156.0,0.0001824,2]
[405930340,1771420250301,-152.0,0.0001824,2]
[405930341,1771420250311,-159.0,0.0001824,2]
[405930342,1771420250324,-276.0,0.0001824,2]
[405930343,1771420250334,-156.0,0.0001824,2]
[405930344,1771420250343,-152.0,0.0001824,2]
[405930345,1771420250352,-152.0,0.0001824,2]
[405930346,1771420250362,-153.0,0.0001824,2]
[405930347,1771420250372,-152.0,0.0001824,2]
[405930348,1771420250382,-152.0,0.0001824,2]
[405930349,1771420250392,-153.0,0.0001824,2]
[405930350,1771420250402,-152.0,0.0001824,2]
[405930351,1771420250411,-1508.0,0.0001824,2]
[405930352,1771420250422,-152.0,0.0001824,2]
[405930353,1771420250431,-153.0,0.0001824,2]
[405930354,1771420250441,-1508.0,0.0001824,2]
[405930355,1771420250451,-152.0,0.0001824,2]
[405930356,1771420250461,-152.0,0.0001824,2]
[405930357,1771420250472,-153.0,0.0001824,2]
[405930358,1771420250482,-1508.0,0.0001824,2]
[405930359,1771420250492,-152.0,0.0001824,2]
[405930360,1771420250502,-152.0,0.0001824,2]
[405930361,1771420250511,-153.0,0.0001824,2]
[405930362,1771420250520,-1508.0,0.0001824,2]
[405930363,1771420250529,-152.0,0.0001824,2]
[405930364,1771420250540,-152.0,0.0001824,2]
[405930365,1771420250550,-153.0,0.0001824,2]
[405930366,1771420250560,-1508.0,0.0001824,2]
[405930367,1771420250569,-152.0,0.0001824,2]
[405930368,1771420250579,-152.0,0.0001824,2]
[405930369,1771420250589,-206.13850543,0.0001824,2]
[405930370,1771420250599,-1508.0,0.0001824,2]
[405930371,1771420250609,-152.0,0.0001824,2]
[405930372,1771420250619,-152.0,0.0001824,2]
[405930373,1771420250629,-153.0,0.0001824,2]
[405930374,1771420250639,-1508.0,0.0001824,2]
[405930375,1771420250648,-152.0,0.0001824,2]
[405930376,1771420250658,-152.0,0.0001824,2]
[405930377,1771420250667,-1508.0,0.0001824,2]
[405930378,1771420250677,-152.0,0.0001824,2]
[405930379,1771420250686,-152.0,0.0001824,2]
[405930380,1771420250696,-152.0,0.0001824,2]
[405930381,1771420250706,-152.0,0.0001824,2]
[405930382,1771420250716,-152.0,0.0001824,2]
[405930383,1771420250726,-152.0,0.0001824,2]
[405930384,1771420250738,-152.0,0.0001824,2]
[405930385,1771420250750,-152.0,0.0001824,2]
[405930386,1771420250760,-152.0,0.0001824,2]
[405930387,1771420250770,-152.0,0.0001824,2]
[405930388,1771420250780,-152.0,0.0001824,2]
[405930389,1771420250790,-152.0,0.0001824,2]
[405930390,1771420250798,-152.0,0.0001824,2]
[405930391,1771420250808,-161.96732508,0.0001824,2]
[405930392,1771420250817,-152.0,0.0001824,2]
[405930393,1771420250827,-168.0,0.00018309,2]
[405930394,1771420250838,-168.0,0.0001832,2]
[405930395,1771420250848,-841.0,0.00018356,2]
[405930396,1771420250857,-912.24,0.00018356,2]
[405930397,1771420250868,-200.0,0.00018362,2]
[405930398,1771420250877,-2828.0,0.00018455,2]
[405930399,1771420250887,-2836.0,0.00018504,2]
[405930400,1771420250897,-2827.49,0.00018533,2]
[405930401,1771420251226,-200.0,0.00018545,2]
[405930402,1771420251236,-151.91461334,0.0001863,2]
[405930403,1771420251246,-150.0,0.00018652,2]
[405930404,1771420251258,-150.0,0.00018652,2]
[405930405,1771420251268,-150.0,0.00018652,2]
[405930406,1771420251277,-150.0,0.00018652,2]
[405930407,1771420251287,-150.0,0.00018652,2]
[405930408,1771420251296,-150.0,0.00018652,2]
[405930409,1771420251306,-150.0,0.00018652,2]
[405930410,1771420251315,-150.0,0.00018652,2]
[405930411,1771420251327,-150.0,0.00018652,2]
[405930412,1771420251336,-150.0,0.00018652,2]
[405930413,1771420251346,-150.0,0.00018652,2]
[405930414,1771420251355,-1338.0,0.00018652,2]
[405930415,1771420251364,-1164.0,0.00018652,2]
[405930416,1771420251374,-617.0,0.00018652,2]
[405930417,1771420251383,-150.0,0.00018652,2]
[405930418,1771420251391,-1275.0,0.00018652,2]
[405930419,1771420251400,-1209.0,0.00018652,2]
[405930420,1771420251409,-2452.0,0.00018657,2]
[405930421,1771420251418,-5973.0,0.00018657,2]
[405930422,1771420251428,-919.0,0.00018657,2]
[405930423,1771420251437,-200.0,0.00018731,2]
[405930424,1771420251446,-168.0,0.00018761,2]
[405930425,1771420251455,-168.0,0.00018801,2]
[405930426,1771420251463,-173.62051493,0.00018848,2]
[405930427,1771420251472,-160.0,0.00018848,2]
[405930428,1771420251482,-507.0,0.00018871,4]
[405930429,1771420251491,-841.0,0.00018904,2]
[405930430,1771420251499,-841.0,0.00018904,2]
[405930431,1771420251508,-168.0,0.00018981,2]
[405930432,1771420251518,-168.0,0.0001899,2]
[405930433,1771420251527,-350.0,0.00019,2]
[405930434,1771420251537,-854.52,0.0001905,2]
[405930435,1771420251546,-854.52,0.0001905,2]
[405930436,1771420251557,-854.52,0.0001905,2]
[405930437,1771420251567,-854.52,0.0001905,2]
[405930438,1771420251577,-854.52,0.0001905,2]
[405930439,1771420251586,-854.52,0.0001905,2]
[405930440,1771420251596,-854.52,0.0001905,2]
[405930441,1771420251606,-854.52,0.0001905,2]
[405930442,1771420251616,-854.52,0.0001905,2]
[405930443,1771420251627,-854.52,0.0001905,2]
[405930444,1771420251636,-854.52,0.0001905,2]
[405930445,1771420251646,-854.52,0.0001905,2]
[405930446,1771420251657,-854.52,0.0001905,2]
[405930447,1771420251667,-854.52,0.0001905,2]
[405930448,1771420251678,-854.52,0.0001905,2]
[405930449,1771420251687,-854.52,0.0001905,2]
[405930450,1771420251695,-854.52,0.0001905,2]
[405930451,1771420251704,-854.52,0.0001905,2]
[405930452,1771420251714,-854.52,0.0001905,2]
[405930453,1771420251726,-854.52,0.0001905,2]
[405930454,1771420251737,-854.52,0.0001905,2]
[405930455,1771420251747,-854.52,0.0001905,2]
[405930456,1771420251756,-854.52,0.0001905,2]
[405930457,1771420251767,-854.52,0.0001905,2]
[405930458,1771420251776,-854.52,0.0001905,2]
[405930459,1771420251787,-854.52,0.0001905,2]
[405930460,1771420251797,-854.52,0.0001905,2]
[405930461,1771420251806,-854.52,0.0001905,2]
[405930462,1771420251816,-854.52,0.0001905,2]
[405930463,1771420251829,-854.34884352,0.0001905,2]
[405930464,1771420251840,-168.0,0.00019057,2]
[405930465,1771420251851,-168.0,0.00019117,2]
[405930466,1771420251863,-168.0,0.00019155,2]
[405930467,1771420251875,-155.0,0.00019177,2]
[405930468,1771420251884,-841.0,0.00019178,2]
[405930469,1771420251894,-841.0,0.00019178,2]
[405930470,1771420251904,-168.0,0.00019242,2]
[405930471,1771420251915,-841.0,0.00019452,2]
[405930472,1771420251926,-841.0,0.00019452,2]
[405930473,1771420251937,-569.98,0.00019748,2]
[405930474,1771420251948,-507.0,0.00019812,5]
[405930475,1771420251959,-841.0,0.0002,2]
[405930476,1771420251971,-150.0,0.0002,20]
[405930477,1771420251980,-200.0,0.0002,2]
[405930478,1771420251992,-150.32602201,0.00020016,2]
[405930479,1771420252003,-174.42,0.00020034,2]
[405930480,1771420252012,-841.0,0.00020274,2]
[405930481,1771420252021,-4291.2505333,0.00020274,2]
[405930482,1771420252031,-841.0,0.00020548,2]
[405930483,1771420252040,-150.32602201,0.00020684,2]
[405930484,1771420252050,-333.11,0.00020708,2]
[405930485,1771420252059,-507.0,0.00020752,6]
[405930486,1771420252069,-957.5074187,0.00020784,2]
[405930487,1771420252078,-841.0,0.00021096,2]
[405930488,1771420252087,-150.32602201,0.00021351,2]
[405930489,1771420252097,-841.0,0.0002137,2]
[405930490,1771420252107,-841.0,0.00021644,2]
[405930491,1771420252116,-150.0,0.00021652,2]
[405930492,1771420252125,-150.0,0.00021652,2]
[405930493,1771420252134,-150.0,0.00021652,2]
[405930494,1771420252143,-150.0,0.00021652,2]
[405930495,1771420252152,-150.0,0.00021652,2]
[405930496,1771420252162,-150.0,0.00021652,2]
[405930497,1771420252172,-150.0,0.00021652,2]
[405930498,1771420252181,-1338.0,0.00021652,2]
[405930499,1771420252190,-1164.0,0.00021652,2]
[405930500,1771420252199,-150.0,0.00021652,2]
[405930501,1771420252209,-1275.0,0.00021652,2]
[405930502,1771420252218,-1209.0,0.00021652,2]
[405930503,1771420252227,-2452.0,0.00021657,2]
[405930504,1771420252236,-5973.0,0.00021657,2]
[405930505,1771420252246,-919.0,0.00021657,2]
[405930506,1771420252259,-507.0,0.00021693,7]
[405930507,1771420252269,-309.76,0.000219,7]
[405930508,1771420252278,-5000.0,0.00021918,2]
[405930509,1771420252289,-800.0,0.00021918,2]
[405930510,1771420252299,-800.0,0.00021918,2]
[405930511,1771420252308,-800.0,0.00021918,2]
[405930512,1771420252318,-800.0,0.00021918,2]
[405930513,1771420252330,-800.0,0.00021918,2]
[405930514,1771420252339,-800.0,0.00021918,2]
[405930515,1771420252348,-800.0,0.00021918,2]
[405930516,1771420252357,-800.0,0.00021918,2]
[405930517,1771420252366,-164.94,0.00022,7]
[405930518,1771420252376,-543012.28,0.00022,2]
[405930519,1771420252385,-150.32602201,0.00022018,2]
[405930520,1771420252395,-377.27029009,0.00022192,2]
[405930521,1771420252405,-47686.0,0.00022391,2]
[405930522,1771420252414,-9565.84,0.00022466,2]
[405930523,1771420252423,-507.0,0.00022633,7]
[405930524,1771420252432,-150.32602201,0.00022685,2]
[405930525,1771420252442,-506.0,0.00022833,8]
[405930526,1771420252451,-160.0,0.00023,2]
[405930527,1771420252461,-5228.77,0.00023086,2]
[405930528,1771420252470,-47686.0,0.00023129,2]
[405930529,1771420252480,-150.32602201,0.00023353,2]
[405930530,1771420252489,-507.0,0.00023574,8]
[405930531,1771420252499,-47686.0,0.00023867,2]
[405930532,1771420252508,-174.42,0.00023895,2]
[405930533,1771420252518,-543012.28,0.000239,2]
[405930534,1771420252527,-150.32602201,0.0002402,2]
[405930535,1771420252536,-164.94,0.000245,7]
[405930536,1771420252546,-507.0,0.00024514,9]
[405930537,1771420252555,-47686.0,0.00024605,2]
[405930538,1771420252565,-1338.0,0.00024652,2]
[405930539,1771420252574,-1275.0,0.00024652,2]
[405930540,1771420252583,-1209.0,0.00024652,2]
[405930541,1771420252592,-155.0,0.00024656,2]
[405930542,1771420252601,-2452.0,0.00024657,2]
[405930543,1771420252610,-5973.0,0.00024657,2]
[405930544,1771420252620,-1000.0,0.00024658,2]
[405930545,1771420252629,-150.0,0.00024658,2]
[405930546,1771420252639,-150.32602201,0.00024687,2]
[405930547,1771420252647,-300.0,0.00024999,10]
[405930548,1771420252656,-27367.518661,0.00025343,2]
[405930549,1771420252670,-425.40998656,0.00025343,2]
[405930550,1771420252680,-348.31,0.00025343,2]
[405930551,1771420252864,-919.0,0.00024657,2]
[405930552,1771420252873,-146.73349975,0.00025343,2]
[405930553,1771420252884,-2178.0,0.00025343,2]
[405930555,1771420464819,-363.0159,7.6e-05,2]
[405930556,1771420464840,-254.43,7.6e-05,2]
[405930557,1771420464861,-250.0,7.786e-05,2]
[405930558,1771420464881,-300.0,7.972e-05,2]
[405930559,1771420464903,-8832.5541,7.973e-05,2]
[405930560,1771420465842,-10000.0,7.973e-05,2]
[405930561,1771420468182,-10000.0,7.973e-05,2]
[405930562,1771420475915,-5000.0,7.973e-05,2]
[405930563,1771420477104,-5000.0,7.973e-05,2]
[405930564,1771420481149,-5000.0,7.973e-05,2]
[405930565,1771420482537,-5000.0,7.973e-05,2]
[405930566,1771420547881,-276.99685668,7.972e-05,2]
[405930567,1771420547907,-320.84616114,7.972e-05,2]
[405930568,1771420547927,-150.0,7.972e-05,2]
[405930569,1771420547946,-300.0,7.972e-05,2]
[405930570,1771420547968,-1200.0,7.972e-05,2]
[405930571,1771420547992,-2752.15698218,7.973e-05,2]
[405930572,1771420549402,-5000.0,7.973e-05,2]
[405930573,1771420550705,-5000.0,7.973e-05,2]
[405930574,1771420552088,-5000.0,7.973e-05,2]
[405930575,1771420553459,-5000.0,7.973e-05,2]
[405930576,1771420554779,-5000.0,7.973e-05,2]
[405930577,1771420556500,-5000.0,7.973e-05,2]
[405930578,1771420559738,-5000.0,7.973e-05,2]
[405930579,1771420563605,-5000.0,7.973e-05,2]
[405930580,1771420565281,-5000.0,7.973e-05,2]
[405930581,1771420567134,-5000.0,7.973e-05,2]
[405930582,1771420568836,-5000.0,7.973e-05,2]
[405930583,1771420570315,-5000.0,7.973e-05,2]
[405930584,1771420571481,-5000.0,7.973e-05,2]
[405930585,1771420572476,-5000.0,7.973e-05,2]
[405930586,1771420573479,-5000.0,7.973e-05,2]
[405930588,1771421409020,150.0,0.00011233,120]
[405930608,1771421431798,-201.69343799,7.708e-05,2]
[405930609,1771421431808,-250.0,7.712e-05,2]
[405930610,1771421431818,-748.303,7.715e-05,2]
[405930611,1771421431828,-180.59137271,7.715e-05,2]
[405930612,1771421431837,-1200.0,7.734e-05,2]
[405930613,1771421431846,-150.0,7.735e-05,2]
[405930614,1771421431857,-300.0,7.735e-05,2]
[405930615,1771421431866,-3456.04733022,7.736e-05,2]
[405930616,1771421431877,-291.65158265,7.736e-05,2]
[405930642,1771421437976,-18998.85979924,7.736e-05,2]
[405930643,1771421438243,-5244.02879708,7.736e-05,2]
[405930644,1771421438254,-3142496.2683606,7.736e-05,2]
[405930650,1771421439921,-329513.14413021,7.736e-05,2]
[405930651,1771421439931,-2887.40769396,7.835e-05,2]
[405930652,1771421439940,-170.40667766,7.835e-05,2]
[405930653,1771421439949,-470.07434366,7.835e-05,2]
[405930654,1771421439958,-32222.0,7.836e-05,2]
[405930655,1771421439968,-500.0,7.873e-05,2]
[405930656,1771421439977,-500.0,7.873e-05,2]
[405930657,1771421439986,-500.0,7.873e-05,2]
[405930658,1771421439995,-500.0,7.873e-05,2]
[405930659,1771421440006,-500.0,7.873e-05,2]
[405930660,1771421440015,-500.0,7.873e-05,2]
[405930661,1771421440024,-500.0,7.873e-05,2]
[405930662,1771421440041,-500.0,7.873e-05,2]
[405930663,1771421440271,-500.0,7.873e-05,2]
[405930664,1771421440281,-500.0,7.873e-05,2]
[405930665,1771421440290,-500.0,7.873e-05,2]
[405930666,1771421440299,-500.0,7.873e-05,2]
[405930667,1771421440308,-500.0,7.873e-05,2]
[405930668,1771421440317,-500.0,7.873e-05,2]
[405930669,1771421440326,-500.0,7.873e-05,2]
[405930670,1771421440339,-500.0,7.873e-05,2]
[405930671,1771421440348,-500.0,7.873e-05,2]
[405930672,1771421440359,-500.0,7.873e-05,2]
[405930673,1771421440369,-500.0,7.873e-05,2]
[405930674,1771421440378,-500.0,7.873e-05,2]
[405930675,1771421440388,-500.0,7.873e-05,2]
[405930676,1771421440400,-500.0,7.873e-05,2]
[405930677,1771421440409,-500.0,7.873e-05,2]
[405930678,1771421440418,-500.0,7.873e-05,2]
[405930679,1771421440428,-500.0,7.873e-05,2]
[405930680,1771421440437,-500.0,7.873e-05,2]
[405930681,1771421440447,-500.0,7.873e-05,2]
[405930682,1771421440456,-500.0,7.873e-05,2]
[405930683,1771421440465,-500.0,7.873e-05,2]
[405930684,1771421440475,-500.0,7.873e-05,2]
[405930685,1771421440485,-500.0,7.873e-05,2]
[405930686,1771421440494,-500.0,7.873e-05,2]
[405930687,1771421440503,-500.0,7.873e-05,2]
[405930688,1771421440512,-500.0,7.873e-05,2]
[405930689,1771421440522,-500.0,7.873e-05,2]
[405930690,1771421440535,-500.0,7.873e-05,2]
[405930691,1771421440544,-500.0,7.873e-05,2]
[405930692,1771421440553,-500.0,7.873e-05,2]
[405930693,1771421440563,-500.0,7.873e-05,2]
[405930694,1771421440572,-500.0,7.873e-05,2]
[405930695,1771421440581,-500.0,7.873e-05,2]
[405930696,1771421440590,-500.0,7.873e-05,2]
[405930697,1771421440599,-500.0,7.873e-05,2]
[405930698,1771421440612,-500.0,7.873e-05,2]
[405930699,1771421440621,-500.0,7.873e-05,2]
[405930700,1771421440630,-500.0,7.873e-05,2]
[405930701,1771421440639,-500.0,7.873e-05,2]
[405930702,1771421440648,-500.0,7.873e-05,2]
[405930703,1771421440658,-500.0,7.873e-05,2]
[405930704,1771421440667,-472.68340978,7.873e-05,2]
[405930705,1771421440676,-553.95,7.873e-05,2]
[405930706,1771421440687,-553.95,8.147e-05,2]